bitfinex/quotes_BTCUSD_20241202
["timestamp","ask_amount","ask_price","bid_price","bid_amount"]
[1733112041991,0.00228893,96675.0,96643.0,0.00170995]
[1733112042205,0.206915,96658.0,96644.0,0.05080978]
[1733112042694,0.10457541,96659.0,96644.0,0.05080978]
[1733112043190,0.001,96658.0,96645.0,0.206942]
[1733112043443,0.0017302,96659.0,96646.0,0.05741042]
[1733112043693,0.0017302,96659.0,96647.0,0.206938]
[1733112043952,0.0017302,96659.0,96655.0,0.1]
[1733112044194,0.24962481,96677.0,96670.0,0.206887]
[1733112044446,0.24962481,96677.0,96672.0,0.206885]
[1733112044683,0.2498034,96677.0,96674.0,0.20688]
[1733112044917,0.2498034,96677.0,96675.0,0.0514261]
[1733112045377,0.2588034,96677.0,96675.0,0.00170873]
[1733112045615,0.2498034,96677.0,96673.0,0.0817]
[1733112045846,0.2568034,96677.0,96673.0,0.0817]
[1733112046072,0.2658034,96677.0,96674.0,0.001]
[1733112046321,0.2658034,96677.0,96675.0,0.00837]
[1733112046579,0.2748034,96677.0,96675.0,0.00937]
[1733112047072,0.206876,96676.0,96675.0,0.00937]
[1733112047548,0.206876,96676.0,96675.0,0.01037]
[1733112047785,0.36064861,96677.0,96675.0,0.00937]
[1733112048031,0.35264861,96677.0,96676.0,0.009107]
[1733112048266,0.2588034,96677.0,96676.0,0.009107]
[1733112048517,0.2498034,96677.0,96676.0,0.009107]
[1733112049386,0.2588034,96677.0,96676.0,0.010107]
[1733112049650,0.2678034,96677.0,96676.0,0.010107]
[1733112049862,0.2588034,96677.0,96676.0,0.009107]
[1733112050757,0.2588034,96677.0,96676.0,0.01081583]
[1733112050987,0.206914,96659.0,96657.0,0.079]
[1733112051204,0.4746774,96677.0,96676.0,0.001]
[1733112051446,0.7246774,96677.0,96676.0,0.001]
[1733112051924,0.206939,96647.0,96640.0,0.0478]
[1733112052149,0.413878,96647.0,96640.0,0.0478]
[1733112052357,0.206931,96651.0,96640.0,0.0478]
[1733112052782,0.206917,96657.0,96640.0,0.0478]
[1733112053001,0.20693,96651.0,96640.0,0.0478]
[1733112053187,0.20693,96651.0,96641.0,0.00171044]
[1733112053441,0.206917,96657.0,96641.0,0.00171044]
[1733112053654,0.006,96659.0,96648.0,0.206934]
[1733112053861,0.006,96659.0,96649.0,0.02240308]
[1733112054102,0.206896,96667.0,96649.0,0.02240308]
[1733112054364,0.206896,96667.0,96651.0,0.0754]
[1733112054365,0.20707459,96667.0,96651.0,0.0754]
[1733112055007,0.10284521,96666.0,96651.0,0.0754]
[1733112055229,0.2069,96665.0,96652.0,0.01141901]
[1733112055442,0.206913,96659.0,96652.0,0.01141901]
[1733112056121,0.10284521,96664.0,96652.0,0.01141901]
[1733112056122,0.206904,96663.0,96652.0,0.01141901]
[1733112056331,0.10284521,96664.0,96652.0,0.01141901]
[1733112056554,0.00317859,96667.0,96654.0,0.206922]
[1733112056811,0.00317859,96667.0,96653.0,0.0293757]
[1733112056812,0.00317859,96667.0,96655.0,0.00170919]
[1733112057056,0.00317859,96667.0,96656.0,0.00170934]
[1733112057307,0.00217859,96667.0,96656.0,0.00170934]
[1733112057525,0.002,96665.0,96657.0,0.206917]
[1733112057739,0.002,96665.0,96658.0,0.05381771]
[1733112058003,0.00017859,96667.0,96660.0,0.023]
[1733112058669,0.00017859,96667.0,96661.0,0.206908]
[1733112058886,0.00017859,96667.0,96662.0,0.023]
[1733112059132,0.00017859,96667.0,96660.0,0.023]
[1733112059355,0.00017859,96667.0,96662.0,0.023]
[1733112059598,0.206897,96666.0,96662.0,0.023]
[1733112059848,0.20707459,96667.0,96662.0,0.023]
[1733112060063,0.206901,96665.0,96661.0,0.03411246]
[1733112060309,0.206901,96665.0,96659.0,0.0458]
[1733112060541,0.206904,96663.0,96660.0,0.001]
[1733112060822,0.206904,96663.0,96659.0,0.0458]
[1733112060823,0.41381,96663.0,96661.0,0.001]
[1733112061047,0.01417859,96667.0,96661.0,0.001]
[1733112061281,0.02317859,96667.0,96662.0,0.001]
[1733112061510,0.02317859,96667.0,96664.0,0.282602]
[1733112061784,0.02317859,96667.0,96666.0,0.229897]
[1733112061785,0.00017859,96667.0,96666.0,0.229897]
[1733112062018,0.00017859,96667.0,96666.0,0.33274221]
[1733112062723,0.00017859,96667.0,96666.0,0.12584521]
[1733112062938,0.00017859,96667.0,96664.0,0.0757]
[1733112063160,0.206897,96666.0,96664.0,0.0757]
[1733112063631,0.206897,96666.0,96664.0,0.01235]
[1733112063843,0.206897,96666.0,96664.0,0.001]
[1733112064330,0.206897,96666.0,96664.0,0.004]
[1733112064581,0.00017859,96667.0,96651.0,0.0757]
[1733112064582,0.00017859,96667.0,96653.0,0.206925]
[1733112064789,0.00017859,96667.0,96655.0,0.023]
[1733112065004,0.00017859,96667.0,96662.0,0.023]
[1733112065219,0.001,96666.0,96664.0,0.206902]
[1733112065441,0.001,96666.0,96663.0,0.05396692]
[1733112065649,0.001,96666.0,96664.0,0.229902]
[1733112066108,0.001,96666.0,96664.0,0.023]
[1733112066322,0.001,96666.0,96657.0,0.273]
[1733112066539,0.00017859,96667.0,96657.0,0.273]
[1733112066540,0.2069,96665.0,96659.0,0.023]
[1733112066762,0.206923,96654.0,96651.0,0.0757]
[1733112066977,0.00017859,96667.0,96655.0,0.002]
[1733112067238,0.00017859,96667.0,96656.0,0.01599093]
[1733112067239,0.206915,96658.0,96656.0,0.01599093]
[1733112067675,0.2069,96665.0,96656.0,0.01599093]
[1733112067896,0.206912,96660.0,96659.0,0.004]
[1733112068293,0.413824,96660.0,96656.0,0.01599093]
[1733112068558,0.206912,96660.0,96659.0,0.001]
[1733112069667,0.00017859,96667.0,96659.0,0.001]
[1733112070349,0.206921,96656.0,96653.0,0.0495]
[1733112070794,0.00017859,96667.0,96642.0,0.02023095]
[1733112070795,0.206947,96643.0,96642.0,0.02023095]
[1733112071015,0.206947,96643.0,96641.0,2e-07]
[1733112071232,0.206947,96643.0,96642.0,0.01277002]
[1733112072097,0.211947,96643.0,96642.0,0.01277002]
[1733112072342,0.211947,96643.0,96641.0,2e-07]
[1733112073696,0.220947,96643.0,96641.0,2e-07]
[1733112073941,0.215947,96643.0,96641.0,2e-07]
[1733112074153,0.206947,96643.0,96641.0,2e-07]
[1733112074394,0.208947,96643.0,96641.0,2e-07]
[1733112075082,0.207947,96643.0,96641.0,2e-07]
[1733112075530,0.10284521,96642.0,96641.0,2e-07]
[1733112075991,0.10513467,96642.0,96641.0,2e-07]
[1733112076718,0.25513505,96642.0,96641.0,2e-07]
[1733112076923,0.38427988,96642.0,96641.0,2e-07]
[1733112077352,0.207006,96616.0,96599.0,0.0805]
[1733112077595,0.001,96643.0,96621.0,0.146]
[1733112077840,0.001,96642.0,96641.0,0.001]
[1733112078048,0.206941,96646.0,96624.0,0.206986]
[1733112078273,0.206941,96646.0,96641.0,0.003]
[1733112078521,0.001,96642.0,96641.0,0.004]
[1733112078748,0.413883,96646.0,96641.0,0.003]
[1733112079689,0.206928,96652.0,96624.0,0.02317893]
[1733112079690,0.206981,96628.0,96624.0,0.02317893]
[1733112079894,0.206981,96628.0,96625.0,0.01490789]
[1733112080393,0.206969,96633.0,96626.0,0.023]
[1733112080634,0.206983,96626.0,96625.0,0.01490789]
[1733112081333,0.206983,96626.0,96624.0,0.00017893]
[1733112081811,0.009,96628.0,96624.0,0.00017893]
[1733112082024,0.206938,96648.0,96633.0,0.206967]
[1733112082271,0.206938,96648.0,96626.0,0.0463]
[1733112082272,0.206938,96648.0,96634.0,0.0752]
[1733112082495,0.24962481,96677.0,96634.0,0.0752]
[1733112082496,0.206916,96658.0,96643.0,0.206945]
[1733112082737,0.206916,96658.0,96639.0,0.206955]
[1733112082953,0.24962481,96677.0,96642.0,0.123]
[1733112083194,0.206898,96666.0,96644.0,0.173]
[1733112083465,0.192798,96666.0,96647.0,0.023]
[1733112083669,0.206912,96660.0,96647.0,0.12584521]
[1733112083898,0.20689,96670.0,96646.0,0.023]
[1733112084117,0.20689,96670.0,96645.0,0.08973452]
[1733112084118,0.24962481,96677.0,96645.0,0.023]
[1733112084347,0.206913,96659.0,96647.0,0.023]
[1733112084562,0.41383,96658.0,96647.0,0.023]
[1733112084750,0.206915,96658.0,96647.0,0.023]
[1733112085012,0.206915,96658.0,96647.0,0.024]
[1733112085253,0.206915,96658.0,96649.0,0.023]
[1733112085687,0.001,96659.0,96649.0,0.023]
[1733112085928,0.24962481,96677.0,96649.0,0.023]
[1733112085929,0.206897,96666.0,96649.0,0.023]
[1733112086161,0.206924,96654.0,96648.0,0.029075]
[1733112086397,0.001,96658.0,96649.0,0.0179075]
[1733112086648,0.206928,96652.0,96649.0,0.0179075]
[1733112086878,0.206928,96652.0,96647.0,0.002]
[1733112087088,0.206906,96662.0,96647.0,0.002]
[1733112087196,0.001,96666.0,96647.0,0.002]
[1733112087420,0.001,96666.0,96642.0,0.023]
[1733112087629,0.206927,96653.0,96642.0,0.023]
[1733112087841,0.206915,96658.0,96649.0,0.001]
[1733112088050,0.007,96652.0,96649.0,0.002]
[1733112088254,0.007,96652.0,96649.0,0.001]
[1733112088477,0.213928,96652.0,96649.0,0.001]
[1733112088691,0.007,96652.0,96649.0,0.001]
[1733112089125,0.009,96652.0,96643.0,0.02945]
[1733112089332,0.009,96652.0,96644.0,0.06317656]
[1733112089550,0.009,96652.0,96645.0,0.33278721]
[1733112090028,0.009,96652.0,96651.0,0.20693]
[1733112090248,0.0017312,96658.0,96657.0,0.206917]
[1733112090464,0.0017312,96658.0,96657.0,0.43559367]
[1733112090677,0.0017312,96658.0,96657.0,0.22867667]
[1733112091101,0.0017312,96658.0,96657.0,0.10283146]
[1733112091326,0.0017312,96658.0,96653.0,0.023]
[1733112092191,0.4245622,96658.0,96652.0,0.1203]
[1733112092413,0.2086462,96658.0,96643.0,0.0763]
[1733112092663,0.206931,96651.0,96644.0,0.04807226]
[1733112093106,0.206942,96645.0,96644.0,0.04807226]
[1733112093350,0.206942,96645.0,96641.0,0.0008656]
[1733112093558,0.206942,96645.0,96643.0,0.001]
[1733112093776,0.206942,96645.0,96630.0,0.2611206]
[1733112094009,0.206934,96649.0,96630.0,0.2611206]
[1733112094010,0.206934,96649.0,96632.0,0.20697]
[1733112094230,0.206923,96655.0,96634.0,0.206966]
[1733112094474,0.006,96645.0,96644.0,0.001]
[1733112094681,0.006,96645.0,96644.0,0.207945]
[1733112094892,0.006,96645.0,96644.0,0.002]
[1733112095326,0.006,96645.0,96644.0,0.001]
[1733112095559,0.012,96645.0,96644.0,0.002]
[1733112095781,0.006,96645.0,96644.0,0.0241948]
[1733112095991,0.0017312,96658.0,96645.0,0.206942]
[1733112096663,0.0017312,96658.0,96654.0,0.206923]
[1733112096891,0.0017312,96658.0,96655.0,0.023]
[1733112097524,0.0117312,96658.0,96655.0,0.023]
[1733112097726,0.0117312,96658.0,96656.0,0.0229923]
[1733112097949,0.0117312,96658.0,96645.0,0.1]
[1733112097950,0.206917,96657.0,96633.0,0.0782]
[1733112098166,0.212942,96645.0,96644.0,0.001]
[1733112098390,0.206966,96634.0,96633.0,0.0782]
[1733112098612,0.10284521,96657.0,96633.0,0.01247789]
[1733112098822,0.10284521,96657.0,96631.0,0.0464]
[1733112098823,0.206949,96643.0,96631.0,0.0464]
[1733112099666,0.413898,96643.0,96631.0,0.0464]
[1733112099868,0.206949,96642.0,96631.0,0.0464]
[1733112100083,0.206949,96642.0,96633.0,0.004]
[1733112100295,0.4139,96642.0,96633.0,0.004]
[1733112100509,0.206958,96638.0,96633.0,0.004]
[1733112100723,0.20697,96633.0,96630.0,0.00017893]
[1733112100945,0.20696,96637.0,96631.0,0.001]
[1733112101569,0.413921,96637.0,96631.0,0.001]
[1733112102051,0.20697,96632.0,96631.0,0.001]
[1733112103411,0.20697,96632.0,96630.0,0.00801682]
[1733112103756,0.20697,96632.0,96630.0,0.00017893]
[1733112103996,0.21397,96632.0,96630.0,0.00017893]
[1733112104262,0.21314227,96632.0,96630.0,0.00017893]
[1733112104397,0.20614227,96632.0,96630.0,0.00017893]
[1733112104798,0.21314227,96632.0,96630.0,0.00017893]
[1733112105037,0.22214227,96632.0,96631.0,0.001]
[1733112105420,0.007,96632.0,96630.0,0.00017893]
[1733112105642,0.206972,96631.0,96630.0,0.00017893]
[1733112105871,0.206972,96631.0,96630.0,0.00117893]
[1733112106235,0.016,96632.0,96630.0,0.00117893]
[1733112106236,0.009,96632.0,96630.0,0.00017893]
[1733112106440,0.206972,96631.0,96630.0,0.00017893]
[1733112107790,0.213972,96631.0,96630.0,0.00117893]
[1733112108399,0.016,96631.0,96630.0,0.00217893]
[1733112109526,0.016,96631.0,96630.0,0.02309572]
[1733112109874,0.016,96631.0,96630.0,0.00217893]
[1733112112416,0.016,96631.0,96630.0,0.17772414]
[1733112112649,0.016,96631.0,96630.0,0.52772414]
[1733112112899,0.0117312,96658.0,96655.0,0.1239]
[1733112113103,0.0117312,96658.0,96656.0,0.206919]
[1733112113353,0.0117312,96658.0,96657.0,0.06405862]
[1733112113557,0.0117312,96658.0,96657.0,0.33990383]
[1733112113771,0.0117312,96658.0,96657.0,0.43990383]
[1733112114636,0.0117312,96658.0,96657.0,0.46035632]
[1733112115575,0.0147312,96658.0,96657.0,0.46035632]
[1733112116022,0.0117312,96658.0,96657.0,0.06405862]
[1733112116260,0.0137312,96658.0,96641.0,0.082]
[1733112116467,0.413834,96657.0,96631.0,0.20583229]
[1733112116680,0.206948,96643.0,96631.0,0.082]
[1733112116892,0.413896,96643.0,96632.0,0.01329445]
[1733112117121,0.413896,96643.0,96626.0,0.0499]
[1733112117122,0.206936,96649.0,96631.0,0.206972]
[1733112117548,0.206948,96643.0,96626.0,0.0499]
[1733112117962,0.206938,96648.0,96626.0,0.0499]
[1733112118177,0.413838,96656.0,96630.0,0.20801753]
[1733112118400,0.0177312,96658.0,96631.0,0.10284521]
[1733112118629,0.0117312,96658.0,96644.0,0.206944]
[1733112118863,0.0117312,96658.0,96644.0,0.413888]
[1733112119154,0.001,96643.0,96642.0,0.0997]
[1733112119374,0.001,96643.0,96642.0,0.3800566]
[1733112119608,0.0117312,96658.0,96645.0,0.023]
[1733112119815,0.0127312,96658.0,96645.0,0.023]
[1733112120245,0.0117312,96658.0,96652.0,0.206926]
[1733112120449,0.0117312,96658.0,96653.0,0.023]
[1733112120664,0.0117312,96658.0,96656.0,0.206919]
[1733112120877,0.0117312,96658.0,96657.0,0.12584521]
[1733112121749,0.0117312,96658.0,96654.0,0.0329926]
[1733112121990,0.206937,96648.0,96645.0,0.009]
[1733112122256,0.206934,96649.0,96646.0,0.01393566]
[1733112122467,0.206934,96649.0,96632.0,0.02537897]
[1733112122697,0.206944,96645.0,96632.0,0.02537897]
[1733112122959,0.206956,96639.0,96632.0,0.02537897]
[1733112123170,0.206956,96639.0,96630.0,0.00104453]
[1733112123171,0.206923,96655.0,96630.0,0.00104453]
[1733112123389,0.0167312,96658.0,96630.0,0.00104453]
[1733112123390,0.006,96648.0,96645.0,0.001]
[1733112123638,0.0117312,96658.0,96646.0,0.10284521]
[1733112123871,0.0117312,96658.0,96654.0,0.206922]
[1733112124095,0.0117312,96658.0,96655.0,0.0206922]
[1733112124529,0.0117312,96658.0,96647.0,0.206938]
[1733112125421,0.0117312,96658.0,96649.0,0.173]
[1733112125641,0.0017312,96655.0,96654.0,0.206922]
[1733112125864,0.0017312,96655.0,96654.0,0.30976721]
[1733112126320,0.0017312,96655.0,96654.0,0.35804393]
[1733112126843,0.0037312,96655.0,96654.0,0.35804393]
[1733112127080,0.0047312,96655.0,96654.0,0.35804393]
[1733112127503,0.0027312,96655.0,96654.0,0.35804393]
[1733112127933,0.0027312,96655.0,96654.0,0.40574393]
[1733112128154,0.0027312,96655.0,96654.0,0.57874393]
[1733112128365,0.0027312,96655.0,96654.0,0.65734393]
[1733112128581,0.0017312,96655.0,96654.0,0.75734393]
[1733112128837,0.0017312,96655.0,96654.0,0.85934393]
[1733112129310,0.0017312,96655.0,96654.0,0.85734393]
[1733112129518,0.0084624,96658.0,96657.0,0.1]
[1733112129739,0.0084624,96658.0,96657.0,0.47867667]
[1733112130719,0.24962481,96677.0,96666.0,0.708197]
[1733112130950,0.24962481,96677.0,96676.0,0.479876]
[1733112131196,0.24962481,96677.0,96676.0,0.78969691]
[1733112131424,0.226133,96677.0,96676.0,0.88969691]
[1733112131662,0.00762175,96677.0,96676.0,0.88969691]
[1733112131882,0.00762175,96677.0,96676.0,0.99934691]
[1733112132102,0.0017296,96694.0,96683.0,0.579861]
[1733112132324,0.0017296,96694.0,96683.0,0.83571082]
[1733112132553,0.00090714,96684.0,96683.0,0.83571082]
[1733112132788,0.00132866,96686.0,96685.0,0.2]
[1733112133013,0.00132866,96686.0,96685.0,0.47584521]
[1733112135111,0.00132866,96686.0,96685.0,0.25284521]
[1733112135344,0.00132866,96686.0,96685.0,0.35564581]
[1733112136041,0.00132866,96686.0,96685.0,0.55564581]
[1733112136276,0.00232866,96686.0,96685.0,0.55264581]
[1733112136507,0.00232866,96686.0,96685.0,0.55364581]
[1733112136728,0.00132866,96686.0,96685.0,0.57564581]
[1733112137180,0.00132866,96686.0,96685.0,0.57864581]
[1733112137421,0.00132866,96686.0,96685.0,0.47864581]
[1733112137894,0.00132866,96686.0,96685.0,0.37864581]
[1733112138126,0.00132866,96686.0,96685.0,0.18452091]
[1733112138378,0.00132866,96686.0,96685.0,0.0786757]
[1733112138602,0.00132866,96686.0,96685.0,0.003]
[1733112139065,0.00132866,96686.0,96676.0,0.00017859]
[1733112139299,0.00132866,96686.0,96685.0,0.003]
[1733112139531,0.00432866,96686.0,96685.0,0.10284521]
[1733112139773,0.00432866,96686.0,96685.0,0.17518893]
[1733112140015,0.00632866,96686.0,96685.0,0.17518893]
[1733112140261,0.00632866,96686.0,96685.0,0.44818893]
[1733112140484,0.00932866,96686.0,96685.0,0.54818893]
[1733112140728,0.00932866,96686.0,96685.0,0.59518893]
[1733112142049,0.00932866,96686.0,96685.0,0.49518893]
[1733112142475,0.00932866,96686.0,96685.0,0.39518893]
[1733112142477,0.00932866,96686.0,96685.0,0.34818893]
[1733112142721,0.01132866,96686.0,96685.0,0.32518893]
[1733112142963,0.00432866,96686.0,96685.0,0.32518893]
[1733112143430,0.00232866,96686.0,96685.0,0.33318893]
[1733112143668,0.00432866,96686.0,96685.0,0.32518893]
[1733112143901,0.00432866,96686.0,96685.0,0.45018893]
[1733112144136,0.00432866,96686.0,96685.0,0.55018893]
[1733112144382,0.0017296,96694.0,96693.0,0.47984]
[1733112144629,0.0017296,96694.0,96693.0,0.6626218]
[1733112146727,0.0017296,96694.0,96693.0,0.5626218]
[1733112146950,0.0027296,96694.0,96693.0,0.5626218]
[1733112149333,0.0011928,96708.0,96704.0,0.206814]
[1733112149556,0.0011928,96708.0,96704.0,0.30965921]
[1733112149780,0.0011928,96708.0,96706.0,0.206812]
[1733112150285,0.0011928,96708.0,96707.0,0.10284521]
[1733112150524,0.0011928,96708.0,96707.0,0.12584521]
[1733112150747,0.0101928,96708.0,96707.0,0.12584521]
[1733112150974,0.00578855,96708.0,96707.0,0.12584521]
[1733112151207,0.00178855,96708.0,96707.0,0.62029336]
[1733112151438,0.00778855,96708.0,96707.0,0.62029336]
[1733112152363,0.00178855,96708.0,96707.0,0.62029336]
[1733112152592,0.00678855,96708.0,96707.0,0.62029336]
[1733112152814,0.00678855,96708.0,96707.0,0.62229336]
[1733112153050,0.00178855,96708.0,96707.0,0.62029336]
[1733112153278,0.00178855,96708.0,96707.0,0.62129336]
[1733112153505,0.00278855,96708.0,96707.0,0.62129336]
[1733112154032,0.00278855,96708.0,96707.0,0.42129336]
[1733112154276,0.00278855,96708.0,96707.0,0.33869336]
[1733112154952,0.00278855,96708.0,96707.0,0.31822301]
[1733112155187,0.00036909,96713.0,96709.0,0.15]
[1733112155407,0.00054771,96713.0,96711.0,0.15]
[1733112155649,0.00054771,96713.0,96712.0,0.45964421]
[1733112155887,0.00054771,96713.0,96712.0,0.15]
[1733112156340,0.00154771,96713.0,96712.0,0.15]
[1733112156594,0.00154771,96713.0,96712.0,0.19294983]
[1733112156838,0.00054771,96713.0,96712.0,0.04294983]
[1733112157067,0.00154771,96713.0,96696.0,0.206832]
[1733112157306,0.21034471,96713.0,96697.0,0.12314257]
[1733112157533,0.21034471,96713.0,96698.0,0.206829]
[1733112157807,0.00354771,96713.0,96699.0,0.15652557]
[1733112158031,0.00354771,96713.0,96701.0,0.206823]
[1733112158274,0.21034571,96713.0,96699.0,0.05368036]
[1733112158514,0.21034571,96713.0,96698.0,0.206828]
[1733112158515,0.206825,96700.0,96685.0,0.0008652]
[1733112158736,0.206825,96700.0,96686.0,0.10284521]
[1733112158961,0.206811,96707.0,96697.0,0.009]
[1733112159174,0.206811,96707.0,96687.0,0.206853]
[1733112159415,0.206811,96707.0,96696.0,0.009]
[1733112159626,0.00254771,96713.0,96699.0,0.009]
[1733112159856,0.00154771,96713.0,96694.0,0.206837]
[1733112160083,0.00154771,96713.0,96699.0,0.206825]
[1733112160330,0.001,96707.0,96700.0,0.000865]
[1733112160545,0.001,96707.0,96703.0,0.206817]
[1733112160769,0.001,96707.0,96702.0,0.20682]
[1733112161215,0.001,96707.0,96701.0,0.01107102]
[1733112162164,0.00054771,96713.0,96701.0,0.01107102]
[1733112162388,0.00054771,96713.0,96702.0,0.20682]
[1733112162617,0.00054771,96713.0,96701.0,0.01207102]
[1733112162618,0.009,96707.0,96703.0,0.0426582]
[1733112163328,0.20734571,96713.0,96703.0,0.0426582]
[1733112163564,0.00054771,96713.0,96703.0,0.0426582]
[1733112163792,0.006,96707.0,96705.0,0.206814]
[1733112164024,0.006,96707.0,96706.0,0.10284521]
[1733112164252,0.00054771,96713.0,96706.0,0.14758606]
[1733112164471,0.00054771,96713.0,96712.0,0.206799]
[1733112164704,0.00054771,96713.0,96707.0,0.20681]
[1733112164928,0.00054771,96713.0,96709.0,0.206805]
[1733112165672,0.00054771,96713.0,96706.0,0.04474085]
[1733112165673,0.009,96707.0,96706.0,0.04474085]
[1733112165901,0.00054771,96713.0,96706.0,0.04474085]
[1733112165902,0.00054771,96713.0,96706.0,0.206812]
[1733112166366,0.00054771,96713.0,96695.0,0.206834]
[1733112166367,0.00154771,96713.0,96709.0,0.009]
[1733112167112,0.00054771,96713.0,96701.0,0.206821]
[1733112167344,0.00054771,96713.0,96700.0,0.000865]
[1733112167598,0.00054771,96713.0,96701.0,0.0357697]
[1733112167599,0.206799,96712.0,96701.0,0.0357697]
[1733112167833,0.00054771,96713.0,96708.0,0.206807]
[1733112168718,0.00054771,96713.0,96706.0,0.002]
[1733112168931,0.00054771,96713.0,96708.0,0.003]
[1733112169860,0.00054771,96713.0,96701.0,0.0357697]
[1733112170102,0.00054771,96713.0,96700.0,0.000865]
[1733112170334,0.206799,96712.0,96700.0,0.000865]
[1733112170790,0.00054771,96713.0,96700.0,0.000865]
[1733112171013,0.00054771,96713.0,96701.0,0.208823]
[1733112171477,0.00054771,96713.0,96708.0,0.206807]
[1733112171717,0.00054771,96713.0,96709.0,0.05164722]
[1733112171989,0.00054771,96713.0,96710.0,0.206803]
[1733112172653,0.00054771,96713.0,96709.0,0.05164722]
[1733112172911,0.00054771,96713.0,96709.0,0.05664722]
[1733112173163,0.00054771,96713.0,96709.0,0.05164722]
[1733112173378,0.00054771,96713.0,96710.0,0.24077842]
[1733112173596,0.00554771,96713.0,96710.0,0.24077842]
[1733112173809,0.00854771,96713.0,96710.0,0.24077842]
[1733112174250,0.00554771,96713.0,96710.0,0.24077842]
[1733112174460,0.00554771,96713.0,96710.0,0.34362363]
[1733112174661,0.00354771,96713.0,96712.0,0.206799]
[1733112175139,0.00754771,96713.0,96712.0,0.206799]
[1733112175571,0.00954771,96713.0,96712.0,0.206799]
[1733112175792,0.00354771,96713.0,96712.0,0.206799]
[1733112176018,0.00054771,96713.0,96712.0,0.2648961]
[1733112176237,0.00554771,96713.0,96712.0,0.2648961]
[1733112176442,0.00254771,96713.0,96712.0,0.2648961]
[1733112176649,0.00054771,96713.0,96712.0,0.2648961]
[1733112177100,0.00354771,96713.0,96712.0,0.2648961]
[1733112177526,0.00054771,96713.0,96712.0,0.2648961]
[1733112178191,0.00354771,96713.0,96712.0,0.2648961]
[1733112178417,0.00654771,96713.0,96712.0,0.2648961]
[1733112178637,0.00354771,96713.0,96712.0,0.2648961]
[1733112178890,0.00854771,96713.0,96712.0,0.2648961]
[1733112179544,0.01354771,96713.0,96712.0,0.2648961]
[1733112179783,0.01054771,96713.0,96712.0,0.2648961]
[1733112179997,0.01354771,96713.0,96712.0,0.2648961]
[1733112180439,0.01054771,96713.0,96712.0,0.2648961]
[1733112180674,0.00054771,96713.0,96712.0,0.2648961]
[1733112180911,0.00454771,96713.0,96712.0,0.2648961]
[1733112181140,0.00954771,96713.0,96712.0,0.51774131]
[1733112181366,0.00554771,96713.0,96712.0,0.51774131]
[1733112181571,0.00554771,96713.0,96712.0,0.54174131]
[1733112181572,0.01554771,96713.0,96712.0,0.54174131]
[1733112181994,0.00454771,96713.0,96712.0,0.54074131]
[1733112182220,0.00654771,96713.0,96712.0,0.54074131]
[1733112182453,0.00654771,96713.0,96712.0,0.51774131]
[1733112182678,0.00654771,96713.0,96712.0,0.31094231]
[1733112182898,0.00254771,96713.0,96712.0,0.31094231]
[1733112183113,0.00454771,96713.0,96712.0,0.31094231]
[1733112183560,0.00454771,96713.0,96712.0,0.33394231]
[1733112183775,0.00754771,96713.0,96712.0,0.33394231]
[1733112184005,0.00254771,96713.0,96712.0,0.33394231]
[1733112184662,0.00054771,96713.0,96712.0,0.33394231]
[1733112184893,0.00254771,96713.0,96712.0,0.33394231]
[1733112185117,0.00154771,96713.0,96712.0,0.31094231]
[1733112185577,0.00254771,96713.0,96712.0,0.0580971]
[1733112185794,0.00254771,96713.0,96708.0,0.413613]
[1733112186011,0.00154771,96713.0,96708.0,0.413613]
[1733112186282,0.00154771,96713.0,96708.0,0.206806]
[1733112186507,0.00354771,96713.0,96709.0,0.10284521]
[1733112186742,0.00254771,96713.0,96711.0,0.206801]
[1733112186990,0.00054771,96713.0,96711.0,0.30964621]
[1733112187231,0.00054771,96713.0,96712.0,0.10284521]
[1733112187430,0.00154771,96713.0,96712.0,0.30582343]
[1733112187871,0.00154771,96713.0,96712.0,0.32882343]
[1733112187872,0.00054771,96713.0,96712.0,0.32882343]
[1733112189787,0.00127371,96713.0,96712.0,0.32882343]
[1733112190014,0.00227371,96713.0,96712.0,0.32882343]
[1733112190244,0.00127371,96713.0,96712.0,0.32882343]
[1733112190744,0.00227371,96713.0,96712.0,0.32882343]
[1733112192056,0.00227371,96713.0,96712.0,0.20297822]
[1733112192274,0.00227371,96713.0,96711.0,0.206801]
[1733112193405,0.00227371,96713.0,96712.0,0.10284521]
[1733112193406,0.00027371,96713.0,96712.0,0.10284521]
[1733112193623,0.00227371,96713.0,96712.0,0.12584521]
[1733112194050,0.00227371,96713.0,96712.0,0.27584521]
[1733112194306,0.00127371,96713.0,96712.0,0.34736069]
[1733112194506,0.00027371,96713.0,96712.0,0.34736069]
[1733112194718,0.00227371,96713.0,96712.0,0.34736069]
[1733112195189,0.00127371,96713.0,96712.0,0.34736069]
[1733112195846,0.00027371,96713.0,96712.0,0.34736069]
[1733112196057,0.00127371,96713.0,96712.0,0.34736069]
[1733112196704,0.00027371,96713.0,96712.0,0.34736069]
[1733112196913,0.00127371,96713.0,96712.0,0.34736069]
[1733112197125,0.00227371,96713.0,96712.0,0.34736069]
[1733112197336,0.00027371,96713.0,96712.0,0.34736069]
[1733112197771,0.00227371,96713.0,96712.0,0.47496069]
[1733112200520,0.00227371,96713.0,96712.0,0.52506069]
[1733112206731,0.00227371,96713.0,96712.0,0.37446069]
[1733112206935,0.00227371,96713.0,96712.0,0.15294521]
[1733112207158,0.00227371,96713.0,96712.0,0.15381051]
[1733112209871,0.00227371,96713.0,96712.0,0.0509653]
[1733112213506,0.00127371,96713.0,96712.0,0.0509653]
[1733112213948,0.00627371,96713.0,96712.0,0.0519653]
[1733112214191,0.00627371,96713.0,96712.0,0.05739503]
[1733112214415,0.01127371,96713.0,96712.0,0.05839503]
[1733112214702,0.01127371,96713.0,96712.0,0.0519653]
[1733112214703,0.08637371,96713.0,96712.0,0.0519653]
[1733112214909,0.09037371,96713.0,96712.0,0.0519653]
[1733112215133,0.19321892,96713.0,96712.0,0.0519653]
[1733112215346,0.23831892,96713.0,96712.0,0.0519653]
[1733112215558,0.27383216,96713.0,96712.0,0.0519653]
[1733112215997,0.29033505,96713.0,96712.0,0.0519653]
[1733112216209,0.24782181,96713.0,96712.0,0.0509653]
[1733112216428,0.24882181,96713.0,96712.0,0.0589653]